fUST/lending_fUST_20240714
["ID","MTS","AMOUNT","RATE_DAILY","PERIOD"]
[331985382,1720921860632,-4497.98013829,0.000255,2]
[331985415,1720922840234,-435.0,0.00020543,2]
[331985416,1720922840256,-111.4141709,0.00021095,2]
[331985418,1720922947168,-1109.96201372,0.00018995,2]
[331985419,1720922947191,-160.25793276,0.00020545,2]
[331985420,1720922952099,-226.77144638,0.00021095,2]
[331985421,1720922952123,-750.0,0.00021096,2]
[331985422,1720922952144,-300.0,0.00021524,2]
[331985423,1720922952171,-300.0,0.00021524,2]
[331985424,1720922952194,-24900.0,0.00021525,2]
[331985425,1720922952215,-547.3958726,0.00021602,2]
[331985426,1720922952235,-626.52588018,0.00021664,2]
[331985427,1720922952260,-161.736775,0.00021852,2]
[331985428,1720922952280,-295.3518124,0.00021889,2]
[331985429,1720922968129,-212.564619,0.00022343,2]
[331985434,1720922972742,1000.0,0.00021095,2]
[331985435,1720922988628,166.666666,0.00022161,2]
[331985441,1720923010336,176.11053175,0.00021095,2]
[331985442,1720923016917,13052.51850209,0.00022161,3]
[331985443,1720923016939,500.0,0.00022161,3]
[331985444,1720923016963,15144.22055952,0.00022161,3]
[331985445,1720923016985,15462.45574034,0.00022161,3]
[331985446,1720923017010,15449.18533257,0.00022161,3]
[331985468,1720923032519,-1203.6,0.00022161,3]
[331985478,1720923038521,-32244.90347696,0.00022161,3]
[331985479,1720923038530,-162.172741,0.00022204,2]
[331985480,1720923038540,-1270.33031781,0.00022343,2]
[331985481,1720923038551,-880.93169364,0.0002237,2]
[331985482,1720923038560,-1060.5380625,0.0002256,2]
[331985483,1720923038570,-620.32629401,0.00022747,2]
[331985485,1720923038581,-166.666666,0.00022765,2]
[331985487,1720923038591,-300.0,0.00022941,2]
[331985489,1720923038602,-300.0,0.00022941,2]
[331985491,1720923038613,-20729.83312244,0.00022942,2]
[331985493,1720923038622,-166.666666,0.00023369,2]
[331985495,1720923038633,-1172.178426,0.000235,15]
[331985496,1720923038646,-620.0163147,0.00023885,2]
[331985497,1720923038657,-166.666666,0.00023973,2]
[331985498,1720923038667,-1109.96201372,0.00023995,2]
[331985499,1720923038677,-2000.0,0.000245,10]
[331985500,1720923038689,-3207.60344232,0.00024557,2]
[331985501,1720923038701,-166.666666,0.00024578,2]
[331985502,1720923038711,-1482.89493675,0.00024608,2]
[331985504,1720923038721,-511.666679,0.00024646,10]
[331985506,1720923038731,-8838.38664075,0.00024647,3]
[331985508,1720923038741,-323.38,0.00024647,3]
[331985510,1720923038750,-650.33233418,0.00024656,2]
[331985511,1720923038761,-500.0,0.00024656,2]
[331985514,1720923038771,-184.3869252,0.00024656,2]
[331985516,1720923038781,-500.0,0.00024656,2]
[331985518,1720923038792,-174.70763979,0.00024656,2]
[331985520,1720923038803,-500.0,0.00024656,2]
[331985522,1720923038813,-260.00378191,0.00024656,2]
[331985524,1720923038824,-341.4678566,0.00024656,2]
[331985526,1720923038834,-506.50899771,0.00024657,2]
[331985528,1720923038845,-500.0,0.00024657,2]
[331985531,1720923038855,-500.0,0.00024657,2]
[331985532,1720923038865,-500.0,0.00024657,2]
[331985534,1720923038875,-500.0,0.00024657,2]
[331985536,1720923038885,-500.0,0.00024657,2]
[331985538,1720923038895,-500.0,0.00024657,2]
[331985540,1720923038904,-263.40827183,0.00024657,2]
[331985542,1720923038914,-500.0,0.00024657,2]
[331985544,1720923038923,-500.0,0.00024657,2]
[331985547,1720923038933,-505.70653614,0.00024657,2]
[331985548,1720923038942,-500.0,0.00024657,2]
[331985550,1720923038952,-500.0,0.00024657,2]
[331985552,1720923038961,-500.0,0.00024657,2]
[331985554,1720923038970,-500.0,0.00024657,2]
[331985556,1720923038981,-500.0,0.00024657,2]
[331985558,1720923038990,-500.0,0.00024657,2]
[331985560,1720923038999,-320.77698311,0.00024657,2]
[331985562,1720923039009,-500.0,0.00024657,2]
[331985564,1720923039019,-500.0,0.00024657,2]
[331985566,1720923039029,-500.0,0.00024657,2]
[331985568,1720923039039,-500.0,0.00024657,2]
[331985570,1720923039051,-500.0,0.00024657,2]
[331985572,1720923039061,-500.0,0.00024657,2]
[331985574,1720923039070,-500.0,0.00024657,2]
[331985576,1720923039080,-500.0,0.00024657,2]
[331985578,1720923039091,-500.0,0.00024657,2]
[331985580,1720923039100,-500.0,0.00024657,2]
[331985582,1720923039109,-508.43858548,0.00024657,2]
[331985584,1720923039120,-515.90891164,0.00024657,2]
[331985586,1720923039130,-314.88810098,0.00024657,2]
[331985587,1720923039139,-500.0,0.00024657,2]
[331985589,1720923039149,-500.0,0.00024657,2]
[331985592,1720923039159,-500.0,0.00024657,2]
[331985594,1720923039169,-500.0,0.00024657,2]
[331985596,1720923039179,-185.33937531,0.00024657,2]
[331985598,1720923039189,-500.0,0.00024657,2]
[331985600,1720923039199,-500.0,0.00024657,2]
[331985602,1720923039208,-500.0,0.00024657,2]
[331985603,1720923039218,-506.92586096,0.00024657,2]
[331985605,1720923039228,-500.0,0.00024657,2]
[331985607,1720923039239,-500.0,0.00024657,2]
[331985609,1720923039249,-480.86976876,0.00024657,2]
[331985611,1720923039258,-500.0,0.00024657,2]
[331985613,1720923039270,-446.98228238,0.00024657,2]
[331985616,1720923039280,-334.28405629,0.00024657,2]
[331985618,1720923039289,-500.0,0.00024657,2]
[331985619,1720923039299,-500.0,0.00024657,2]
[331985621,1720923039309,-500.0,0.00024657,2]
[331985623,1720923039319,-536.19824133,0.00024657,2]
[331985625,1720923039329,-500.0,0.00024657,2]
[331985626,1720923039338,-500.0,0.00024657,2]
[331985627,1720923039347,-500.0,0.00024657,2]
[331985628,1720923039357,-500.0,0.00024657,2]
[331985629,1720923039366,-500.0,0.00024657,2]
[331985630,1720923039375,-500.0,0.00024657,2]
[331985631,1720923039384,-500.0,0.00024657,2]
[331985632,1720923039393,-501.12722142,0.00024657,2]
[331985633,1720923039403,-500.0,0.00024657,2]
[331985634,1720923039413,-500.0,0.00024657,2]
[331985635,1720923039422,-500.0,0.00024657,2]
[331985636,1720923039431,-500.0,0.00024657,2]
[331985637,1720923039441,-500.0,0.00024657,2]
[331985638,1720923039451,-500.0,0.00024657,2]
[331985639,1720923039460,-379.39401125,0.00024657,2]
[331985640,1720923039470,-500.3066454,0.00024657,2]
[331985641,1720923039480,-500.0,0.00024657,2]
[331985642,1720923039489,-500.0,0.00024657,2]
[331985643,1720923039498,-500.0,0.00024657,2]
[331985644,1720923039508,-500.0,0.00024657,2]
[331985645,1720923039518,-500.0,0.00024657,2]
[331985646,1720923039527,-500.0,0.00024657,2]
[331985647,1720923039536,-500.0,0.00024657,2]
[331985648,1720923039546,-500.0,0.00024657,2]
[331985649,1720923039555,-500.0,0.00024657,2]
[331985650,1720923039565,-503.99106012,0.00024657,2]
[331985651,1720923039574,-504.03512229,0.00024657,2]
[331985652,1720923039584,-503.48460947,0.00024657,2]
[331985653,1720923039593,-503.15273814,0.00024657,2]
[331985654,1720923039603,-500.0,0.00024657,2]
[331985655,1720923039612,-500.0,0.00024657,2]
[331985656,1720923039622,-500.0,0.00024657,2]
[331985657,1720923039631,-500.0,0.00024657,2]
[331985658,1720923039641,-500.0,0.00024657,2]
[331985659,1720923039650,-500.0,0.00024657,2]
[331985660,1720923039659,-512.08471957,0.00024657,2]
[331985662,1720923039669,-627.08065071,0.00024657,2]
[331985663,1720923039678,-500.0,0.00024657,2]
[331985664,1720923039687,-318.05656062,0.00024657,2]
[331985665,1720923039698,-660.08,0.00024657,2]
[331985666,1720923039709,-500.0,0.00024657,2]
[331985667,1720923039718,-500.0,0.00024657,2]
[331985668,1720923039728,-500.0,0.00024657,2]
[331985669,1720923039738,-503.38196138,0.00024657,2]
[331985670,1720923039749,-500.0,0.00024657,2]
[331985671,1720923039759,-500.0,0.00024657,2]
[331985672,1720923039771,-500.0,0.00024657,2]
[331985673,1720923039782,-500.0,0.00024657,2]
[331985674,1720923039793,-1500.0,0.00024657,2]
[331985675,1720923039803,-500.0,0.00024657,2]
[331985676,1720923039812,-500.0,0.00024657,2]
[331985677,1720923039822,-500.0,0.00024657,2]
[331985678,1720923039831,-500.0,0.00024657,2]
[331985679,1720923039840,-501.54751808,0.00024657,2]
[331985680,1720923039850,-500.0,0.00024657,2]
[331985681,1720923039860,-500.0,0.00024657,2]
[331985682,1720923039870,-501.06308457,0.00024657,2]
[331985683,1720923039958,-475.1696104,0.00024657,2]
[331985684,1720923039969,-500.0,0.00024657,2]
[331985685,1720923039979,-505.06735446,0.00024657,2]
[331985686,1720923039990,-500.0,0.00024657,2]
[331985687,1720923040001,-500.0,0.00024657,2]
[331985688,1720923040014,-500.0,0.00024657,2]
[331985689,1720923040026,-500.0,0.00024657,2]
[331985690,1720923040036,-500.0,0.00024657,2]
[331985691,1720923040050,-561.02961366,0.00024657,2]
[331985692,1720923040061,-500.0,0.00024657,2]
[331985693,1720923040071,-500.0,0.00024657,2]
[331985694,1720923040081,-500.0,0.00024657,2]
[331985695,1720923040092,-500.0,0.00024657,2]
[331985696,1720923040102,-502.78679301,0.00024657,2]
[331985697,1720923040111,-501.2004926,0.00024657,2]
[331985698,1720923040122,-505.33074697,0.00024657,2]
[331985699,1720923040132,-501.14799265,0.00024657,2]
[331985700,1720923040140,-535.248463,0.00024657,2]
[331985701,1720923040152,-538.63578769,0.00024657,2]
[331985702,1720923040161,-505.08131615,0.00024657,2]
[331985703,1720923040171,-503.33080396,0.00024657,2]
[331985704,1720923040180,-503.17633158,0.00024657,2]
[331985705,1720923040190,-500.0,0.00024657,2]
[331985706,1720923040200,-500.0,0.00024657,2]
[331985707,1720923040210,-500.0,0.00024657,2]
[331985708,1720923040220,-637.76546221,0.00024657,2]
[331985709,1720923040229,-335.85755657,0.00024657,2]
[331985710,1720923040239,-515.7858172,0.00024657,2]
[331985711,1720923040249,-506.76778158,0.00024657,2]
[331985712,1720923040258,-500.0,0.00024657,2]
[331985713,1720923040268,-500.0,0.00024657,2]
[331985714,1720923040278,-500.0,0.00024657,2]
[331985715,1720923040287,-500.0,0.00024657,2]
[331985716,1720923040297,-200.0,0.00024657,2]
[331985717,1720923040308,-500.0,0.00024657,2]
[331985718,1720923040317,-649.3688754,0.00024657,2]
[331985719,1720923040326,-501.77071312,0.00024657,2]
[331985722,1720923040335,-2031.01,0.00024657,2]
[331985725,1720923040344,-500.0,0.00024657,2]
[331985726,1720923040353,-505.43060035,0.00024657,2]
[331985727,1720923040362,-502.45806969,0.00024657,2]
[331985728,1720923040371,-500.0,0.00024657,2]
[331985729,1720923040380,-525.49278574,0.00024657,2]
[331985730,1720923040389,-500.0,0.00024657,2]
[331985731,1720923040400,-500.0,0.00024657,2]
[331985732,1720923040409,-500.0,0.00024657,2]
[331985733,1720923040418,-502.2440729,0.00024657,2]
[331985734,1720923040427,-500.0,0.00024657,2]
[331985735,1720923040437,-500.0,0.00024657,2]
[331985736,1720923040446,-500.0,0.00024657,2]
[331985737,1720923040455,-500.0,0.00024657,2]
[331985738,1720923040465,-500.0,0.00024657,2]
[331985739,1720923040474,-500.0,0.00024657,2]
[331985740,1720923040483,-500.0,0.00024657,2]
[331985741,1720923040492,-501.6641794,0.00024657,2]
[331985742,1720923040501,-501.79885342,0.00024657,2]
[331985743,1720923040511,-500.0,0.00024657,2]
[331985744,1720923040521,-500.0,0.00024657,2]
[331985745,1720923040531,-500.0,0.00024657,2]
[331985746,1720923040541,-501.57594867,0.00024657,2]
[331985747,1720923040551,-500.0,0.00024657,2]
[331985748,1720923040561,-500.0,0.00024657,2]
[331985749,1720923040570,-500.0,0.00024657,2]
[331985750,1720923040580,-503.13036073,0.00024657,2]
[331985751,1720923040590,-500.0,0.00024657,2]
[331985752,1720923040599,-500.0,0.00024657,2]
[331985753,1720923040609,-500.0,0.00024657,2]
[331985754,1720923040619,-500.0,0.00024657,2]
[331985755,1720923040628,-500.0,0.00024657,2]
[331985756,1720923040637,-500.0,0.00024657,2]
[331985757,1720923040647,-500.0,0.00024657,2]
[331985758,1720923040656,-536.25212028,0.00024657,2]
[331985759,1720923040665,-500.0,0.00024657,2]
[331985760,1720923040675,-500.0,0.00024657,2]
[331985761,1720923040685,-500.0,0.00024657,2]
[331985762,1720923040695,-500.0,0.00024657,2]
[331985763,1720923040705,-500.0,0.00024657,2]
[331985764,1720923040715,-500.0,0.00024657,2]
[331985765,1720923040725,-500.0,0.00024657,2]
[331985766,1720923040735,-500.0,0.00024657,2]
[331985767,1720923040744,-515.61343694,0.00024657,2]
[331985768,1720923040753,-500.0,0.00024657,2]
[331985769,1720923040763,-637.98,0.00024657,2]
[331985770,1720923040773,-500.0,0.00024657,2]
[331985771,1720923040783,-501.26110436,0.00024657,2]
[331985772,1720923040792,-500.0,0.00024657,2]
[331985773,1720923040801,-500.0,0.00024657,2]
[331985774,1720923040810,-502.26590797,0.00024657,2]
[331985775,1720923040819,-500.0,0.00024657,2]
[331985776,1720923040829,-500.0,0.00024657,2]
[331985777,1720923040839,-500.0,0.00024657,2]
[331985778,1720923040849,-503.56517578,0.00024657,2]
[331985779,1720923040859,-505.68,0.00024657,2]
[331985780,1720923040868,-501.40367116,0.00024657,2]
[331985781,1720923040878,-500.0,0.00024657,2]
[331985782,1720923040888,-500.0,0.00024657,2]
[331985783,1720923040898,-519.35035287,0.00024657,2]
[331985784,1720923040907,-200.0,0.00024657,7]
[331985785,1720923040917,-500.0,0.00024657,2]
[331985786,1720923040926,-504.70250053,0.00024657,2]
[331985787,1720923040935,-500.0,0.00024657,2]
[331985788,1720923040944,-500.0,0.00024657,2]
[331985789,1720923040954,-500.0,0.00024657,2]
[331985790,1720923040963,-208.02193064,0.00024657,2]
[331985791,1720923040973,-500.0,0.00024657,2]
[331985792,1720923040982,-497.75758518,0.00024657,2]
[331985793,1720923040992,-500.0,0.00024657,2]
[331985794,1720923041001,-593.05594876,0.00024657,2]
[331985795,1720923041010,-500.0,0.00024657,2]
[331985796,1720923041021,-500.0,0.00024657,2]
[331985797,1720923041030,-500.0,0.00024657,2]
[331985798,1720923041040,-500.0,0.00024657,2]
[331985799,1720923041054,-500.0,0.00024657,2]
[331985800,1720923041063,-500.0,0.00024657,2]
[331985801,1720923041072,-500.0,0.00024657,2]
[331985802,1720923041081,-500.0,0.00024657,2]
[331985803,1720923041091,-500.0,0.00024657,2]
[331985804,1720923041100,-515.80610564,0.00024657,2]
[331985805,1720923041109,-500.0,0.00024657,2]
[331985806,1720923041119,-500.0,0.00024657,2]
[331985807,1720923041129,-828.48,0.00024657,2]
[331985808,1720923041138,-500.0,0.00024657,2]
[331985809,1720923041148,-500.0,0.00024657,2]
[331985810,1720923041158,-528.87270732,0.00024657,2]
[331985811,1720923041167,-500.0,0.00024657,2]
[331985812,1720923041177,-500.0,0.00024657,2]
[331985813,1720923041186,-500.0,0.00024657,2]
[331985814,1720923041196,-500.0,0.00024657,2]
[331985815,1720923041205,-1363.93,0.00024657,2]
[331985816,1720923041216,-500.0,0.00024657,2]
[331985817,1720923041225,-500.0,0.00024657,2]
[331985818,1720923041235,-500.0,0.00024657,2]
[331985819,1720923041245,-500.0,0.00024657,2]
[331985820,1720923041255,-500.0,0.00024657,2]
[331985821,1720923041264,-500.0,0.00024657,2]
[331985822,1720923041274,-502.80046309,0.00024657,2]
[331985823,1720923041283,-500.0,0.00024657,2]
[331985824,1720923041292,-3564.37,0.00024657,2]
[331985825,1720923041301,-500.0,0.00024657,2]
[331985826,1720923041311,-500.0,0.00024657,2]
[331985827,1720923041319,-505.5004922,0.00024657,2]
[331985828,1720923041328,-500.0,0.00024657,2]
[331985829,1720923041337,-500.0,0.00024657,2]
[331985830,1720923041346,-849.32,0.00024657,2]
[331985831,1720923041357,-500.0,0.00024657,2]
[331985832,1720923041366,-515.63211344,0.00024657,2]
[331985833,1720923041375,-500.0,0.00024657,2]
[331985834,1720923041384,-500.0,0.00024657,2]
[331985835,1720923041394,-500.0,0.00024657,2]
[331985836,1720923041403,-500.0,0.00024657,2]
[331985837,1720923041413,-500.0,0.00024657,2]
[331985838,1720923041422,-500.0,0.00024657,2]
[331985839,1720923041432,-384.26548416,0.00024657,2]
[331985840,1720923041441,-500.0,0.00024657,2]
[331985841,1720923041450,-500.0,0.00024657,2]
[331985842,1720923041459,-500.0,0.00024657,2]
[331985843,1720923041469,-500.0,0.00024657,2]
[331985844,1720923041478,-500.0,0.00024657,2]
[331985845,1720923041488,-500.0,0.00024657,2]
[331985846,1720923041497,-500.0,0.00024657,2]
[331985847,1720923041506,-522.09833939,0.00024657,2]
[331985848,1720923041515,-500.0,0.00024657,2]
[331985849,1720923041525,-500.0,0.00024657,2]
[331985850,1720923041534,-170.79616645,0.00024657,2]
[331985851,1720923041622,-500.0,0.00024657,2]
[331985852,1720923041634,-500.0,0.00024657,2]
[331985853,1720923041644,-500.0,0.00024657,2]
[331985854,1720923041653,-500.0,0.00024657,2]
[331985855,1720923041663,-500.0,0.00024657,2]
[331985856,1720923041672,-1085.04,0.00024657,2]
[331985857,1720923041682,-778.86,0.00024657,2]
[331985858,1720923041692,-500.0,0.00024657,2]
[331985859,1720923041701,-500.0,0.00024657,2]
[331985860,1720923041711,-500.0,0.00024657,2]
[331985861,1720923041720,-500.0,0.00024657,2]
[331985862,1720923041730,-500.0,0.00024657,2]
[331985863,1720923041739,-500.0,0.00024657,2]
[331985864,1720923041749,-500.0,0.00024657,2]
[331985865,1720923041758,-500.0,0.00024657,2]
[331985866,1720923041767,-502.03626544,0.00024657,2]
[331985867,1720923041777,-500.0,0.00024657,2]
[331985868,1720923041786,-500.0,0.00024657,2]
[331985869,1720923041796,-500.0,0.00024657,2]
[331985870,1720923041806,-503.3298513,0.00024657,2]
[331985871,1720923041815,-500.0,0.00024657,2]
[331985872,1720923041825,-500.0,0.00024657,2]
[331985873,1720923041834,-500.0,0.00024657,2]
[331985874,1720923041843,-500.0,0.00024657,2]
[331985875,1720923041853,-500.0,0.00024657,2]
[331985876,1720923041863,-500.0,0.00024657,2]
[331985877,1720923041872,-500.0,0.00024657,2]
[331985878,1720923041881,-500.0,0.00024657,2]
[331985879,1720923041891,-500.0,0.00024657,2]
[331985880,1720923041900,-500.0,0.00024657,2]
[331985881,1720923041910,-500.0,0.00024657,2]
[331985882,1720923041919,-500.0,0.00024657,2]
[331985883,1720923041929,-515.9582359,0.00024657,2]
[331985884,1720923041938,-500.0,0.00024657,2]
[331985885,1720923041948,-500.0,0.00024657,2]
[331985886,1720923041957,-500.0,0.00024657,2]
[331985887,1720923041967,-697.27,0.00024657,2]
[331985888,1720923041976,-500.0,0.00024657,2]
[331985889,1720923041985,-500.0,0.00024657,2]
[331985890,1720923041994,-519.30771727,0.00024657,2]
[331985891,1720923042003,-500.0,0.00024657,2]
[331985892,1720923042013,-500.0,0.00024657,2]
[331985893,1720923042023,-500.0,0.00024657,2]
[331985894,1720923042032,-500.0,0.00024657,2]
[331985895,1720923042044,-500.0,0.00024657,2]
[331985896,1720923042055,-500.0,0.00024657,2]
[331985897,1720923042065,-500.0,0.00024657,2]
[331985898,1720923042074,-500.0,0.00024657,2]
[331985899,1720923042083,-500.0,0.00024657,2]
[331985900,1720923042093,-500.0,0.00024657,2]
[331985901,1720923042102,-500.0,0.00024657,2]
[331985902,1720923042112,-500.0,0.00024657,2]
[331985903,1720923042123,-500.0,0.00024657,2]
[331985904,1720923042132,-500.0,0.00024657,2]
[331985905,1720923042141,-500.0,0.00024657,2]
[331985906,1720923042151,-500.0,0.00024657,2]
[331985907,1720923042160,-500.0,0.00024657,2]
[331985908,1720923042170,-500.0,0.00024657,2]
[331985909,1720923042180,-254.80344226,0.00024657,2]
[331985910,1720923042190,-500.0,0.00024657,2]
[331985911,1720923042199,-500.0,0.00024657,2]
[331985912,1720923042208,-500.0,0.00024657,2]
[331985913,1720923042217,-500.0,0.00024657,2]
[331985914,1720923042226,-500.0,0.00024657,2]
[331985915,1720923042236,-500.0,0.00024657,2]
[331985916,1720923042245,-501.58970087,0.00024657,2]
[331985917,1720923042254,-503.08758996,0.00024657,2]
[331985918,1720923042263,-500.0,0.00024657,2]
[331985919,1720923042273,-20297.02,0.00024657,2]
[331985920,1720923042283,-513.95906503,0.00024657,2]
[331985921,1720923042292,-500.0,0.00024657,2]
[331985922,1720923042301,-866.91853827,0.00024657,2]
[331985923,1720923042428,-160.26146173,0.00024657,2]
[331985924,1720923042437,-504.91086925,0.00024657,2]
[331985925,1720923042446,-500.0,0.00024657,2]
[331985926,1720923042457,-337.85287885,0.00024657,2]
[331985927,1720923042468,-500.0,0.00024657,2]
[331985928,1720923042477,-500.0,0.00024657,2]
[331985929,1720923042487,-500.0,0.00024657,2]
[331985930,1720923042496,-482.87222075,0.00024657,2]
[331985931,1720923042505,-509.91196703,0.00024657,2]
[331985932,1720923042517,-325.89755952,0.00024657,2]
[331985933,1720923042526,-500.0,0.00024657,2]
[331985934,1720923042537,-188.30785687,0.00024657,2]
[331985935,1720923042552,-311.69214313,0.00024657,2]
[331985936,1720923042563,-500.0,0.00024657,2]
[331985937,1720923042575,-500.0,0.00024657,2]
[331985938,1720923042588,-2639.77,0.00024657,2]
[331985939,1720923042599,-500.0,0.00024657,2]
[331985940,1720923042609,-500.0,0.00024657,2]
[331985941,1720923042618,-500.0,0.00024657,2]
[331985942,1720923042627,-500.0,0.00024657,2]
[331985943,1720923042638,-500.0,0.00024657,2]
[331985944,1720923042648,-500.0,0.00024657,2]
[331985945,1720923042660,-500.0,0.00024657,2]
[331985946,1720923042670,-500.0,0.00024657,2]
[331985947,1720923042681,-500.0,0.00024657,2]
[331985948,1720923042693,-567.05,0.00024657,2]
[331985949,1720923042703,-500.0,0.00024657,2]
[331985950,1720923042715,-500.0,0.00024657,2]
[331985951,1720923042724,-509.29169853,0.00024657,2]
[331985952,1720923042735,-500.0,0.00024657,2]
[331985953,1720923042745,-500.0,0.00024657,2]
[331985954,1720923042756,-1444.85,0.00024657,2]
[331985955,1720923042766,-500.0,0.00024657,2]
[331985956,1720923042776,-500.0,0.00024657,2]
[331985957,1720923042785,-503.97510992,0.00024657,2]
[331985958,1720923042795,-500.0,0.00024657,2]
[331985959,1720923042807,-500.0,0.00024657,2]
[331985960,1720923042819,-500.0,0.00024657,2]
[331985961,1720923042829,-505.69425499,0.00024657,2]
[331985962,1720923042840,-500.0,0.00024657,2]
[331985963,1720923042851,-500.0,0.00024657,2]
[331985964,1720923042862,-500.0,0.00024657,2]
[331985965,1720923042872,-501.53774084,0.00024657,2]
[331985966,1720923042881,-500.0,0.00024657,2]
[331985967,1720923042891,-500.0,0.00024657,2]
[331985968,1720923042900,-161.23660358,0.00024657,2]
[331985969,1720923042909,-500.0,0.00024657,2]
[331985970,1720923042918,-500.0,0.00024657,2]
[331985971,1720923042927,-156.94385602,0.00024657,2]
[331985972,1720923042937,-500.0,0.00024657,2]
[331985976,1720923043021,-500.0,0.00024657,2]
[331985977,1720923043031,-500.0,0.00024657,2]
[331985978,1720923043043,-500.0,0.00024657,2]
[331985979,1720923043060,-500.0,0.00024657,2]
[331985980,1720923043070,-380.0,0.00024658,2]
[331985981,1720923043081,-500.0,0.00024658,2]
[331985982,1720923043094,-273.76606628,0.00024658,2]
[331985983,1720923043106,-3207.60344228,0.00024694,2]
[331985984,1720923043116,-2000.0,0.00024831,2]
[331985985,1720923043130,-3207.60344228,0.00024831,2]
[331985986,1720923043141,-150.112233,0.000249,5]
[331985987,1720923043152,-420.0,0.00024905,2]
[331985988,1720923043162,-5303.03198445,0.00024921,3]
[331985989,1720923043171,-500.0,0.0002493,2]
[331985990,1720923043181,-500.0,0.0002493,2]
[331985991,1720923043191,-257.35810913,0.0002493,2]
[331985993,1720923043201,-500.0,0.0002493,2]
[331985995,1720923043211,-500.0,0.0002493,2]
[331985996,1720923043221,-500.0,0.0002493,2]
[331985997,1720923043231,-500.0,0.00024931,2]
[331985998,1720923043240,-500.0,0.00024931,2]
[331985999,1720923043250,-500.0,0.00024931,2]
[331986000,1720923043260,-500.0,0.00024931,2]
[331986001,1720923043270,-340.22117484,0.00024931,2]
[331986002,1720923043279,-500.0,0.00024931,2]
[331986003,1720923043289,-500.0,0.00024931,2]
[331986004,1720923043301,-500.0,0.00024931,2]
[331986005,1720923043310,-500.0,0.00024931,2]
[331986006,1720923043319,-500.0,0.00024931,2]
[331986007,1720923043328,-500.0,0.00024931,2]
[331986008,1720923043338,-500.0,0.00024931,2]
[331986009,1720923043347,-500.0,0.00024931,2]
[331986010,1720923043356,-500.0,0.00024931,2]
[331986011,1720923043365,-500.0,0.00024931,2]
[331986012,1720923043375,-500.0,0.00024931,2]
[331986013,1720923043385,-500.0,0.00024931,2]
[331986014,1720923043394,-500.0,0.00024931,2]
[331986015,1720923043404,-500.0,0.00024931,2]
[331986016,1720923043413,-526.38213594,0.00024931,2]
[331986017,1720923043422,-538.14600928,0.00024931,2]
[331986018,1720923043432,-500.0,0.00024931,2]
[331986019,1720923043442,-274.5715612,0.00024931,2]
[331986020,1720923043451,-500.0,0.00024931,2]
[331986021,1720923043461,-554.98085002,0.00024931,2]
[331986022,1720923043472,-500.0,0.00024931,2]
[331986023,1720923043481,-500.0,0.00024931,2]
[331986024,1720923043491,-500.0,0.00024931,2]
[331986025,1720923043500,-500.0,0.00024931,2]
[331986026,1720923043510,-500.0,0.00024931,2]
[331986027,1720923043520,-500.0,0.00024931,2]
[331986028,1720923043530,-500.0,0.00024931,2]
[331986029,1720923043541,-500.0,0.00024931,2]
[331986030,1720923043551,-500.0,0.00024931,2]